bitfinex-derivatives/quotes_BNBF0:USTF0_20250603
["timestamp","ask_amount","ask_price","bid_price","bid_amount"]
[1748974266514,1.11277102,664.88,664.42,0.77868648]
[1748974266731,1.11277102,664.86,664.42,0.30101441]
[1748974267113,1.11277102,664.87,664.42,0.30101441]
[1748974267311,1.11277102,664.86,664.42,0.30101441]
[1748974267911,1.11277102,664.85,664.42,0.30101441]
[1748974268115,1.11277102,664.83,664.42,0.30101441]
[1748974268916,1.11252891,664.83,664.42,0.30101441]
[1748974269317,1.11252891,664.84,664.42,0.30101441]
[1748974269518,1.11252891,664.81,664.42,0.30101441]
[1748974270218,1.11252891,664.8,664.42,0.30101441]
[1748974270420,1.11252891,664.81,664.42,0.30101441]
[1748974271022,1.11252891,664.8,664.42,0.30101441]
[1748974271921,1.11252891,664.81,664.42,0.30101441]
[1748974272124,1.11252891,664.8,664.42,0.30101441]
[1748974272422,1.11252891,664.81,664.42,0.30101441]
[1748974272624,2.23990117,665.13,664.42,0.30101441]
[1748974272625,1.11252891,664.8,664.42,0.30101441]
[1748974272827,1.11205641,664.78,664.44,0.47767207]
[1748974273425,1.11205641,664.79,664.45,0.47767207]
[1748974273624,1.11205641,664.78,664.45,0.47767207]
[1748974274820,1.11205641,664.78,664.47,0.47767207]
[1748974275727,1.11205641,664.78,664.48,0.47767207]
[1748974276132,1.11205641,664.8,664.48,0.47767207]
[1748974276526,1.11226645,664.8,664.48,0.47767207]
[1748974276728,1.11226645,664.8,664.5,0.47767207]
[1748974277527,1.11226645,664.8,664.52,0.47767207]
[1748974277723,1.11226645,664.8,664.51,0.47767207]
[1748974277927,1.11226645,664.8,664.42,0.30101441]
[1748974277928,1.11226645,664.8,664.52,0.47767207]
[1748974278529,1.11226645,664.8,664.53,0.47767207]
[1748974278730,1.11226645,664.9,664.42,0.30101441]
[1748974279433,1.11226645,664.89,664.42,0.30101441]
[1748974280534,1.11272255,664.89,664.42,0.30101441]
[1748974282636,1.11272255,664.88,664.42,0.30101441]
[1748974284359,1.11327744,664.88,664.42,0.30101441]
[1748974285333,1.11327744,664.9,664.42,0.30101441]
[1748974285532,1.11327744,664.89,664.42,0.30101441]
[1748974285727,1.11327744,664.91,664.42,0.30101441]
[1748974286354,1.11327744,664.9,664.42,0.30101441]
[1748974286731,1.11327744,664.91,664.42,0.30101441]
[1748974286939,1.11327744,664.9,664.42,0.30101441]
[1748974288235,1.49326744,665.1,664.42,0.30101441]
[1748974288460,1.1135611,664.9,664.42,0.30101441]
[1748974288640,1.1135611,664.85,664.5,0.47767207]
[1748974289134,1.1135611,664.85,664.54,0.47767207]
[1748974289537,1.1135611,664.84,664.53,0.47767207]
[1748974290244,1.1135611,664.84,664.54,0.47767207]
[1748974290434,1.1135611,664.84,664.42,0.30101441]
[1748974290435,1.1135611,664.84,664.55,0.47767207]
[1748974290641,1.1135611,664.83,664.54,0.47767207]
[1748974291240,1.1135611,664.85,664.47,0.47767207]
[1748974291441,1.1135611,664.85,664.42,0.30101441]
[1748974291442,1.1135611,664.84,664.46,0.47767207]
[1748974291737,1.1135611,664.84,664.45,0.47767207]
[1748974291948,1.1135611,664.84,664.46,0.47767207]
[1748974292148,1.11394945,664.84,664.46,0.47767207]
[1748974292339,1.11394945,664.84,664.45,0.47767207]
[1748974292745,1.11394945,664.83,664.45,0.47767207]
[1748974293639,1.11394945,664.83,664.43,0.47767207]
[1748974294044,1.1143704,664.83,664.43,0.47767207]
[1748974294647,1.49326744,664.99,664.43,0.47767207]
[1748974294899,1.49326744,664.99,664.42,0.30101441]
[1748974294900,1.11457178,664.83,664.42,0.30101441]
[1748974295038,1.11457178,664.82,664.42,0.30101441]
[1748974295645,1.11457178,664.81,664.47,0.47767207]
[1748974296644,1.11457178,664.77,664.45,0.47767207]
[1748974296855,1.11457178,664.77,664.42,0.30101441]
[1748974296856,1.11503431,664.76,664.47,0.47767207]
[1748974297747,1.11503431,664.75,664.47,0.47767207]
[1748974298339,1.11503431,664.75,664.49,0.47767207]
[1748974298540,1.11503431,664.74,664.48,0.47767207]
[1748974299057,1.11503431,664.73,664.55,0.47767207]
[1748974299249,1.11503431,664.71,664.7,0.47767207]
[1748974299446,1.11503431,664.72,664.42,0.30101441]
[1748974299743,1.11503431,664.71,664.42,0.30101441]
[1748974300054,1.11503431,664.72,664.42,0.30101441]
[1748974300250,1.11503431,664.74,664.65,0.47874791]
[1748974300658,1.11638974,664.73,664.65,0.47874791]
[1748974300844,1.11638974,664.73,664.67,0.47874791]
[1748974301547,1.11638974,664.72,664.67,0.47874791]
[1748974301746,1.11638974,664.71,664.67,0.47874791]
[1748974301949,1.11638974,664.71,664.66,0.47874791]
[1748974302549,1.11638974,664.7,664.66,0.47874791]
[1748974302751,1.11638974,664.7,664.42,0.30101441]
[1748974302752,1.11638974,664.71,664.67,0.47874791]
[1748974302951,1.11638974,664.7,664.66,0.47874791]
[1748974303155,1.11638974,664.71,664.66,0.47874791]
[1748974303648,1.11638974,664.7,664.66,0.47874791]
[1748974304459,1.49326744,664.83,664.67,0.47874791]
[1748974304653,3.73316862,665.49,664.67,0.47874791]
[1748974304654,1.11764508,664.69,664.67,0.47874791]
[1748974305055,1.11764508,664.69,664.68,0.47874791]
[1748974305450,1.11764508,664.69,664.42,0.30101441]
[1748974305748,1.11764508,664.68,664.42,0.30101441]
[1748974306753,1.11764508,664.67,664.42,0.30101441]
[1748974307857,1.11764508,664.66,664.42,0.30101441]
[1748974308055,1.11764508,664.69,664.57,0.47885575]
[1748974308450,1.11834896,664.69,664.57,0.47885575]
[1748974308649,1.49326744,664.83,664.58,0.47885575]
[1748974308650,1.11834896,664.68,664.58,0.47885575]
[1748974308849,1.11834896,664.68,664.57,0.47885575]
[1748974309151,1.11834896,664.68,664.58,0.47885575]
[1748974309551,1.11834896,664.68,664.59,0.47885575]
[1748974310157,1.11834896,664.68,664.42,0.30101441]
[1748974310158,1.11834896,664.67,664.64,0.47885575]
[1748974310389,1.11834896,664.67,664.42,0.30101441]
[1748974310390,1.11834896,664.67,664.65,0.47885575]
[1748974310562,1.11834896,664.67,664.66,0.47885575]
[1748974311264,1.49326744,664.8,664.66,0.47885575]
[1748974311860,1.49326744,664.8,664.67,0.47885575]
[1748974313663,1.49326744,664.8,664.68,0.47885575]
[1748974314266,1.49326744,664.8,664.42,0.30101441]
[1748974314267,1.49326744,664.82,664.63,0.47885575]
[1748974314465,1.11878387,664.67,664.63,0.47885575]
[1748974314668,1.11878387,664.67,664.64,0.47885575]
[1748974316366,1.11887876,664.67,664.64,0.47885575]
[1748974317864,1.11887876,664.65,664.42,0.30101441]
[1748974320370,1.11916104,664.65,664.42,0.30101441]
[1748974321891,1.49326744,664.78,664.42,0.30101441]
[1748974322121,1.1193009,664.64,664.42,0.30101441]
[1748974322327,1.1193009,664.65,664.42,0.30101441]
[1748974322572,1.1193009,664.63,664.49,0.47855919]
[1748974322769,1.11931245,664.63,664.49,0.47855919]
[1748974323467,5.22643606,665.56,664.42,0.30101441]
[1748974323468,1.11931245,664.61,664.42,0.30101441]
[1748974325673,1.49326744,664.73,664.42,0.30101441]
[1748974325674,1.11931245,664.6,664.43,0.47855919]
[1748974325892,1.11931245,664.6,664.42,0.7795736]
[1748974326379,1.11931245,664.6,664.43,0.47855919]
[1748974326575,1.11931245,664.6,664.42,0.7795736]
[1748974326777,1.11925708,664.6,664.42,0.7795736]
[1748974327876,1.11925708,664.6,664.42,0.30101441]
[1748974328472,1.11925708,664.59,664.52,0.47855919]
[1748974329479,1.11925708,664.58,664.52,0.47855919]
[1748974329676,1.11925708,664.59,664.52,0.47855919]
[1748974330677,1.11925708,664.58,664.52,0.47855919]
[1748974331382,1.11925708,664.58,664.51,0.47855919]
[1748974332480,1.11925708,664.58,664.52,0.47855919]
[1748974333082,1.11925708,664.61,664.42,0.30101441]
[1748974333282,1.11925708,664.6,664.42,0.30101441]
[1748974334585,1.11985677,664.6,664.42,0.30101441]
[1748974335788,1.11985677,664.59,664.42,0.30101441]
[1748974336684,1.11985677,664.56,664.42,0.30101441]
[1748974336933,1.11985677,664.52,664.42,0.30101441]
[1748974337384,1.11985677,664.53,664.42,0.30101441]
[1748974337594,1.11985677,664.53,664.52,0.47899926]
[1748974337785,1.49326744,664.67,664.52,0.47899926]
[1748974337984,1.11961065,664.53,664.52,0.47899926]
[1748974338186,1.49326744,664.68,664.51,0.47899926]
[1748974338384,1.11941628,664.54,664.51,0.47899926]
[1748974339190,1.11941628,664.55,664.5,0.47899926]
[1748974339391,1.11941628,664.55,664.44,0.47899926]
[1748974340195,1.11941628,664.56,664.43,0.47899926]
[1748974340488,1.11941628,664.56,664.42,0.78001367]
[1748974340989,1.11941628,664.64,664.42,0.30101441]
[1748974341291,1.11941628,664.63,664.42,0.30101441]
[1748974344192,1.11941628,664.64,664.42,0.30101441]
[1748974345994,1.49326744,664.84,664.42,0.30101441]
[1748974346190,1.11833751,664.64,664.42,0.30101441]
[1748974348204,1.11833751,664.65,664.42,0.30101441]
[1748974348994,1.11833751,664.64,664.42,0.30101441]
[1748974349197,1.11833751,664.65,664.42,0.30101441]
[1748974350104,1.11833751,664.56,664.42,0.30101441]
[1748974350596,1.11833751,664.57,664.42,0.30101441]
[1748974350797,1.11833751,664.54,664.42,0.30101441]
[1748974352000,1.11833751,664.53,664.42,0.30101441]
[1748974352199,1.11833751,664.53,664.43,0.47899926]
[1748974352399,1.11833751,664.52,664.46,0.47899926]
[1748974353306,1.11833751,664.53,664.46,0.47899926]
[1748974353902,1.49326744,664.66,664.46,0.47899926]
[1748974354101,1.11822129,664.53,664.46,0.47899926]
[1748974354496,1.11822129,664.53,664.45,0.47899926]
[1748974354898,1.49326744,664.66,664.45,0.47899926]
[1748974355205,1.11817827,664.53,664.45,0.47899926]
[1748974355608,1.11817827,664.53,664.42,0.30101441]
[1748974355609,1.11817827,664.53,664.46,0.47899926]
[1748974355802,1.11817827,664.53,664.42,0.30101441]
[1748974355803,1.11817827,664.53,664.44,0.47899926]
[1748974356004,1.11817827,664.54,664.44,0.47899926]
[1748974356402,1.11817827,664.54,664.45,0.47899926]
[1748974356802,1.11817827,664.54,664.44,0.47899926]
[1748974358103,1.11817827,664.52,664.42,0.30101441]
[1748974358304,1.11817827,664.53,664.42,0.30101441]
[1748974360003,1.11817827,664.52,664.42,0.30101441]
[1748974361203,1.11817827,664.61,664.42,0.30101441]
[1748974362112,1.11762122,664.62,664.42,0.30101441]
[1748974364806,1.11745877,664.62,664.42,0.30101441]
[1748974365715,1.11745877,664.61,664.42,0.30101441]
[1748974365915,1.11738596,664.58,664.42,0.30101441]
[1748974366110,1.11738596,664.59,664.42,0.30101441]
[1748974366308,1.11738596,664.58,664.42,0.30101441]
[1748974366610,1.11738596,664.57,664.42,0.30101441]
[1748974368324,1.11738596,664.54,664.42,0.30101441]
[1748974368612,1.11738596,664.46,664.42,0.30101441]
[1748974368766,1.11738596,664.45,664.42,0.7793999]
[1748974369153,1.49326744,664.58,664.42,0.7793999]
[1748974369154,1.11738596,664.46,664.42,0.7793999]
[1748974369618,1.1169952,664.46,664.42,0.47838549]
[1748974370222,1.1169952,664.46,664.26,0.47838549]
[1748974370518,5.22643606,665.47,664.32,0.47838549]
[1748974370519,1.1169952,664.55,664.32,0.47838549]
[1748974370720,1.1169952,664.56,664.33,0.47838549]
[1748974370914,1.1169952,664.56,664.34,0.47838549]
[1748974371112,1.1169952,664.57,664.35,0.47838549]
[1748974371309,1.1169952,664.57,664.36,0.47838549]
[1748974371514,1.1169952,664.58,664.35,0.47838549]
[1748974372287,1.1169952,664.62,664.25,0.47838549]
[1748974372428,1.1169952,664.64,664.42,0.47838549]
[1748974373035,1.1169952,664.65,664.42,0.47838549]
[1748974373216,1.1169952,664.66,664.43,0.47838549]
[1748974373429,1.11717421,664.66,664.43,0.47838549]
[1748974374418,1.11717421,664.66,664.4,0.47838549]
[1748974376115,1.11717421,664.66,664.39,0.47838549]
[1748974376321,1.11717421,664.65,664.42,0.47838549]
[1748974377219,1.11718872,664.65,664.41,0.47838549]
[1748974379522,1.11718872,664.64,664.41,0.47838549]
[1748974380125,1.11718872,664.64,664.4,0.47838549]
[1748974380731,1.49326744,664.8,664.4,0.47838549]
[1748974380924,1.49326744,664.8,663.78,0.26197224]
[1748974380925,1.11741279,664.64,664.42,0.47838549]
[1748974381728,1.11741279,664.65,664.62,0.47838549]
[1748974381948,1.11741279,664.7,664.59,0.47838549]
[1748974382126,1.11741279,664.71,664.59,0.47838549]
[1748974382447,1.11741279,664.71,664.11,1.12489939]
[1748974382448,1.11741279,664.71,664.57,0.47838549]
[1748974382623,1.11741279,664.71,664.58,0.47838549]
[1748974382925,1.11741279,664.72,664.58,0.47838549]
[1748974383129,1.11741279,664.72,664.57,0.47838549]
[1748974383632,1.49326744,664.86,664.57,0.47838549]
[1748974383819,1.11766669,664.72,664.57,0.47838549]
[1748974384220,1.11766669,664.72,664.59,0.47838549]
[1748974384819,1.11766669,664.72,664.6,0.47838549]
[1748974385225,1.11766669,664.72,664.59,0.47838549]
[1748974386221,1.11766669,664.72,664.58,0.47838549]
[1748974386745,1.11766669,664.73,664.59,0.47838549]
[1748974386926,1.11766669,664.8,664.6,0.47838549]
[1748974387155,1.11766669,664.82,664.6,0.47838549]
[1748974387327,1.11766669,664.82,664.0,0.47855919]
[1748974387328,1.11766669,664.82,664.7,0.47838549]
[1748974388229,1.11766669,664.84,664.69,0.47838549]
[1748974388430,1.11766669,664.83,664.67,0.47838549]
[1748974388924,1.11766669,664.84,664.68,0.47838549]
[1748974389133,1.11766669,664.84,664.32,0.47855919]
[1748974389134,1.11766669,664.85,664.66,0.47838549]
[1748974389324,1.11766669,664.83,664.65,0.47838549]
[1748974389528,1.11766669,664.84,664.65,0.47838549]
[1748974389851,1.11766669,664.84,664.28,0.47855919]
[1748974389852,1.11766669,664.85,664.66,0.47838549]
[1748974390130,1.11766669,664.85,664.64,0.47838549]
[1748974390330,1.11766669,664.86,664.59,0.47838549]
[1748974390527,1.11766669,664.87,664.6,0.47838549]
[1748974391229,1.11766669,664.88,664.58,0.47838549]
[1748974391432,1.11766669,664.88,664.59,0.47838549]
[1748974391633,5.22643606,665.92,664.59,0.47838549]
[1748974391634,1.11766669,664.89,664.59,0.47838549]
[1748974391830,1.11766669,664.89,664.61,0.47838549]
[1748974392324,1.11766669,664.89,664.21,1.12479073]
[1748974392325,1.11766669,664.89,664.59,0.47838549]
[1748974392529,1.11766669,664.89,664.21,1.60334992]
[1748974392530,1.11766669,664.89,664.6,0.47838549]
[1748974392766,1.11766669,664.89,664.61,0.47838549]
[1748974392938,1.11766669,664.9,664.6,0.47838549]
[1748974393131,1.11766669,664.9,664.58,0.47838549]
[1748974393332,1.11766669,664.92,664.68,0.47838549]
[1748974393626,1.11766669,664.94,664.7,0.47838549]
[1748974394133,5.22643606,665.91,664.7,0.47838549]
[1748974394134,1.11766669,664.95,664.7,0.47838549]
[1748974394332,1.11766669,664.98,664.65,0.47838549]
[1748974395229,1.49326744,665.11,664.64,0.47838549]
[1748974395433,1.114971,664.99,664.62,0.47838549]
[1748974396227,1.114971,664.99,664.24,0.47855919]
[1748974396228,1.114971,664.99,664.61,0.47838549]
[1748974396930,1.114971,665.0,664.61,0.47838549]
[1748974397129,1.114971,665.01,664.62,0.47838549]
[1748974397431,1.114971,665.0,664.62,0.47838549]
[1748974397633,1.114971,665.01,664.62,0.47838549]
[1748974397835,5.22643606,666.04,664.68,0.47838549]
[1748974397836,1.114971,665.0,664.68,0.47838549]
[1748974398334,1.114971,665.0,664.69,0.47838549]
[1748974399234,1.1138238,665.02,664.66,0.47838549]
[1748974400140,1.1138238,665.02,664.28,0.47855919]
[1748974400141,1.1138238,665.02,664.67,0.47838549]
[1748974401036,1.1138238,665.02,664.68,0.47838549]
[1748974401341,1.1138238,665.03,664.69,0.47838549]
[1748974401537,1.1138238,665.03,664.66,0.47838549]
[1748974402136,1.1138238,665.04,664.66,0.47838549]
[1748974402337,1.1138238,665.04,664.68,0.47838549]
[1748974402937,1.1138238,665.04,664.69,0.47838549]
[1748974403162,1.49326744,665.17,664.69,0.47838549]
[1748974403344,1.49326744,665.17,664.07,1.50033104]
[1748974403345,1.1130949,665.04,664.73,0.47838549]
[1748974404172,1.1130949,665.04,664.76,0.47838549]
[1748974404343,1.1130949,665.03,664.81,0.47838549]
[1748974404942,1.1130949,665.03,664.45,0.47855919]
[1748974404943,1.1130949,665.03,664.8,0.47838549]
[1748974405148,1.1130949,665.04,664.83,0.47838549]
[1748974405365,1.1130949,665.04,664.85,0.47838549]
[1748974406038,1.1130949,665.04,664.87,0.47838549]
[1748974406645,1.1130949,665.03,664.87,0.47838549]
[1748974407270,1.1126365,665.04,664.9,0.47838549]
[1748974408147,1.1126365,665.04,664.91,0.47838549]
[1748974409150,3.73316862,665.76,664.99,0.47838549]
[1748974409151,1.1126365,665.03,664.99,0.47838549]
[1748974409450,1.1126365,665.05,664.91,0.47838549]
[1748974410352,1.1126365,665.05,664.92,0.47838549]
[1748974411053,1.49326744,665.18,664.92,0.47838549]
[1748974411351,1.11230341,665.05,664.98,0.47838549]
[1748974412252,1.11230341,665.05,665.0,0.47838549]
[1748974412462,1.11230341,665.05,665.01,0.47838549]
[1748974413047,1.11230341,665.05,665.0,0.47838549]
[1748974413353,1.11230341,665.05,664.18,1.11911414]
[1748974413354,1.11230341,665.05,665.02,0.47838549]
[1748974413552,1.11230341,665.05,665.03,0.47838549]
[1748974414152,1.11230341,665.05,664.71,0.47855919]
[1748974414755,1.11230341,665.05,664.72,0.47855919]
[1748974415158,1.11225614,665.05,664.73,0.47855919]
[1748974416355,1.11225614,665.05,664.76,0.47855919]
[1748974416858,1.11225614,665.05,664.72,0.47855919]
[1748974417262,1.11225614,665.05,664.74,0.47855919]
[1748974418060,1.11225614,665.05,664.73,0.47855919]
[1748974418359,1.11225614,665.07,665.0,0.47794198]
[1748974419056,1.11259696,665.07,665.0,0.47794198]
[1748974419258,1.11259696,665.08,664.95,0.47794198]
[1748974420059,1.11259696,665.09,664.95,0.47794198]
[1748974420256,1.11259696,665.09,664.97,0.47794198]
[1748974421260,1.11259696,665.09,664.17,1.1190873]
[1748974421261,1.11259696,665.09,665.0,0.47794198]
[1748974422659,1.11259696,665.08,665.0,0.47794198]
[1748974423063,1.11283617,665.08,665.0,0.47794198]
[1748974423761,1.11283617,665.09,665.0,0.47794198]
[1748974423960,1.11283617,665.08,665.0,0.47794198]
[1748974424159,1.11283617,665.08,664.99,0.47794198]
[1748974425161,1.11283617,665.07,664.99,0.47794198]
[1748974425670,1.11283617,665.08,664.99,0.47794198]
[1748974425862,1.49326744,665.22,665.0,0.47794198]
[1748974425863,1.11283617,665.07,665.0,0.47794198]
[1748974426258,1.11283617,665.07,664.38,0.47855919]
[1748974426259,1.11283617,665.07,664.99,0.47794198]
[1748974426764,1.11283617,665.06,664.99,0.47794198]
[1748974426967,1.11348301,665.07,665.0,0.47794198]
[1748974427163,1.11348301,665.06,664.99,0.47794198]
[1748974427979,1.11348301,665.06,665.0,0.47794198]
[1748974428163,1.11348301,665.04,664.65,0.47855919]
[1748974429067,1.11348301,665.04,664.79,0.47855919]
[1748974429265,1.11348301,665.0,664.79,0.47855919]
[1748974429466,1.11348301,665.01,664.79,0.47855919]
[1748974429866,1.11348301,665.01,664.88,0.47855919]
[1748974430181,1.11348301,665.01,664.46,0.57427103]
[1748974430182,1.11348301,664.98,664.84,0.47855919]
[1748974431174,1.11488675,664.97,664.81,0.47855919]
[1748974432173,5.22643606,665.83,664.81,0.47855919]
[1748974432174,1.11488675,664.96,664.81,0.47855919]
[1748974432378,1.11488675,664.97,664.82,0.47855919]
[1748974433282,1.11488675,664.96,664.82,0.47855919]
[1748974434579,1.11488675,664.96,664.78,0.47855919]
[1748974434877,1.49326744,665.07,664.78,0.47855919]
[1748974435079,1.11596316,664.95,664.78,0.47855919]
[1748974436172,1.11596316,664.94,664.79,0.47855919]
[1748974436375,1.11596316,664.95,664.78,0.47855919]
[1748974436976,1.11596316,664.95,664.77,0.47855919]
[1748974437285,1.11596316,664.93,664.76,0.47855919]
[1748974437773,1.11596316,664.93,664.77,0.47855919]
[1748974438178,1.11596316,664.92,664.77,0.47855919]
[1748974438380,1.11596316,664.96,664.91,0.47912481]
[1748974439080,1.11596316,664.95,664.91,0.47912481]
[1748974440074,1.11596316,664.95,664.92,0.47912481]
[1748974441286,1.49326744,665.08,664.92,0.47912481]
[1748974441581,3.73316862,665.77,664.92,0.47912481]
[1748974441582,1.11805031,664.93,664.92,0.47912481]
[1748974442881,1.49326744,665.06,664.92,0.47912481]
[1748974443279,1.49326744,665.05,664.92,0.47912481]
[1748974443481,1.49326744,665.06,664.92,0.47912481]
[1748974443982,1.49326744,665.05,664.92,0.47912481]
[1748974444186,1.49326744,665.04,664.92,0.47912481]
[1748974444508,1.49326744,665.04,664.36,1.54151912]
[1748974444509,1.49326744,665.04,664.93,0.47912481]
[1748974444876,1.49326744,665.04,664.94,0.47912481]
[1748974445287,1.49326744,665.03,664.94,0.47912481]
[1748974445477,1.49326744,665.03,664.93,0.47912481]
[1748974445984,1.49326744,665.02,664.95,0.47912481]
[1748974446184,1.49326744,665.01,664.96,0.47912481]
[1748974447184,1.49326744,665.0,664.96,0.47912481]
[1748974448179,2.23990117,665.05,664.82,0.47855919]
[1748974448383,1.11998564,664.83,664.82,0.47855919]
[1748974449387,1.12011916,664.83,664.82,0.47855919]
[1748974450787,1.49331419,664.93,664.82,0.47855919]
[1748974452287,1.49331419,664.92,664.82,0.47855919]
[1748974453588,3.73316862,665.45,664.77,0.47855919]
[1748974453589,1.49331419,664.93,664.77,0.47855919]
[1748974453787,1.12016782,664.81,664.77,0.47855919]
[1748974454491,1.12016782,664.82,664.77,0.47855919]
[1748974455194,1.12016782,664.82,664.73,0.47855919]
[1748974456394,1.12016782,664.82,664.74,0.47855919]
[1748974456901,1.12016782,664.84,664.59,0.47855919]
[1748974457202,1.49331419,664.97,664.6,0.30093289]
[1748974457497,1.12019114,664.84,664.6,0.77949208]
[1748974458598,1.12019114,664.84,664.61,0.47855919]
[1748974458793,1.12019114,664.84,664.62,0.30092383]
[1748974459194,1.12019114,664.86,664.62,0.30092383]
[1748974461194,1.12019291,664.86,664.62,0.30092383]
[1748974463397,1.12019291,664.85,664.62,0.30092383]
[1748974464196,5.22643606,666.0,664.62,0.30092383]
[1748974464197,1.12019291,664.86,664.62,0.30092383]
[1748974465198,1.12022844,664.86,664.62,0.30092383]
[1748974466894,1.12022844,664.85,664.62,0.30092383]
[1748974468999,1.12024368,664.85,664.62,0.30092383]
[1748974469196,1.12024368,664.83,664.65,0.47855919]
[1748974469740,1.12024368,664.83,664.64,0.47855919]
[1748974469901,1.12024368,664.83,664.64,0.77947397]
[1748974470501,1.12024368,664.83,664.65,0.47855919]
[1748974470901,1.12024368,664.83,664.66,0.47855919]
[1748974471197,1.12024368,664.82,664.65,0.47855919]
[1748974472002,1.12024368,664.82,664.64,0.77947397]
[1748974473003,1.12027034,664.82,664.64,0.77947397]
[1748974473804,1.12027034,664.82,664.68,0.47855919]
[1748974474005,1.12027034,664.81,664.75,0.47855919]
[1748974475301,1.49331419,664.91,664.79,0.47855919]
[1748974475502,1.12029819,664.8,664.79,0.47855919]
[1748974476506,0.89664077,664.8,664.66,0.47855919]
[1748974476701,0.89664077,664.8,664.67,0.41708685]
[1748974476904,0.89664077,664.8,664.68,0.41708685]
[1748974477100,1.49331419,664.91,664.69,0.41708685]
[1748974477297,1.49331419,664.91,664.8,0.4791967]
[1748974477798,1.49331419,664.91,664.81,0.4791967]
[1748974481604,1.49331419,664.9,664.81,0.4791967]
[1748974482397,1.49331419,664.91,664.81,0.4791967]
[1748974483003,1.49331419,664.9,664.81,0.4791967]
[1748974483803,1.49331419,665.01,664.64,0.78013807]
[1748974484003,1.49331419,664.99,664.64,0.30091478]
[1748974484201,1.49331419,665.0,664.64,0.30091478]
[1748974484600,1.49331419,664.99,664.64,0.30091478]
[1748974486204,1.49331419,665.0,664.64,0.30091478]
[1748974486506,1.49331419,664.99,664.64,0.30091478]
[1748974486707,1.49331419,664.94,664.64,0.30091478]
[1748974487103,1.49331419,664.95,664.64,0.30091478]
[1748974487600,1.49331419,664.94,664.64,0.30091478]
[1748974488206,1.49331419,664.95,664.64,0.30091478]
[1748974489007,3.73316862,665.72,664.64,0.30091478]
[1748974489008,1.49331419,664.96,664.64,0.30091478]
[1748974489710,1.49331419,664.97,664.64,0.30091478]
[1748974493624,1.49331419,664.96,664.64,0.30091478]
[1748974493810,1.49331419,664.87,664.64,0.30091478]
[1748974494006,1.49331419,664.86,664.64,0.30091478]
[1748974494205,3.73316862,665.41,664.64,0.30091478]
[1748974494206,1.49331419,664.87,664.64,0.30091478]
[1748974494608,1.49331419,664.86,664.64,0.30091478]
[1748974495208,3.73316862,665.41,664.85,0.47820887]
[1748974495209,1.49331419,664.88,664.85,0.47820887]
[1748974495406,1.49331419,664.9,664.72,0.47820887]
[1748974495907,1.49331419,664.9,664.64,0.30091478]
[1748974495908,1.49331419,664.9,664.74,0.47820887]
[1748974496120,1.49331419,664.9,664.73,0.47820887]
[1748974500613,1.49331419,664.91,664.64,0.30091478]
[1748974500823,1.49331419,664.9,664.64,0.30091478]
[1748974502325,1.49331419,664.89,664.64,0.30091478]
[1748974502715,1.49331419,664.9,664.64,0.30091478]
[1748974503124,1.49331419,664.89,664.64,0.30091478]
[1748974503422,1.49331419,664.88,664.64,0.30091478]
[1748974504012,1.49331419,664.87,664.64,0.30091478]
[1748974504213,1.49331419,664.86,664.64,0.30091478]
[1748974504416,1.49331419,664.89,664.64,0.30091478]
[1748974504608,1.49331419,664.9,664.64,0.30091478]
[1748974508112,1.49331419,664.91,664.64,0.30091478]
[1748974509012,1.49331419,664.87,664.64,0.30091478]
[1748974509410,2.23990117,665.01,664.64,0.30091478]
[1748974509411,1.49331419,664.88,664.64,0.30091478]
[1748974512013,1.49331419,664.87,664.64,0.30091478]
[1748974512813,1.49331419,664.86,664.65,0.47820887]
[1748974513113,1.49331419,664.85,664.66,0.47820887]
[1748974513516,3.73316862,665.45,664.65,0.47820887]
[1748974513517,1.49331419,664.86,664.65,0.47820887]
[1748974514122,1.49331419,664.84,664.73,0.47820887]
[1748974515116,1.49331419,664.84,664.74,0.47820887]
[1748974516124,1.49331419,664.84,664.75,0.47820887]
[1748974517024,1.49331419,664.84,664.64,0.30091478]
[1748974517025,1.49331419,664.83,664.77,0.47820887]
[1748974517225,1.49331419,664.84,664.71,0.47820887]
[1748974517622,1.49331419,664.83,664.64,0.77912365]
[1748974517819,1.49331419,664.82,664.64,0.77912365]
[1748974518230,1.49331419,664.82,664.65,0.47820887]
[1748974518419,1.49331419,664.82,664.64,0.77912365]
[1748974518829,1.49331419,664.82,664.66,0.47820887]
[1748974519226,1.49331419,664.83,664.64,0.30091478]
[1748974520326,1.49331419,664.84,664.64,0.30091478]
[1748974521122,1.49331419,664.83,664.64,0.30091478]
[1748974521328,1.49331419,664.84,664.64,0.30091478]
[1748974525130,5.22643606,665.71,664.64,0.30091478]
[1748974525131,1.49331419,664.85,664.64,0.30091478]
[1748974527059,1.49331419,664.83,664.64,0.30091478]
[1748974527529,2.23990117,664.95,664.64,0.30091478]
[1748974527530,1.49331419,664.82,664.64,0.30091478]
[1748974528737,1.49331419,664.81,664.59,0.47820887]
[1748974528937,1.49331419,664.78,664.57,0.47820887]
[1748974529236,7.7281784,666.1,664.62,0.47820887]
[1748974529237,1.49331419,664.77,664.62,0.47820887]
[1748974529436,1.49331419,664.78,664.62,0.47820887]
[1748974529634,1.49331419,664.78,664.58,0.47820887]
[1748974530035,1.49331419,664.77,664.57,0.47820887]
[1748974530235,1.49331419,664.78,664.59,0.47820887]
[1748974530552,1.49331419,664.79,664.58,0.47820887]